bitfinex/quotes_ETHUSD_20241212
["timestamp","ask_amount","ask_price","bid_price","bid_amount"]
[1734025013167,0.33240257,3940.6,3939.3,0.7725]
[1734025013377,0.55,3940.7,3939.3,0.7725]
[1734025014671,3.0,3941.1,3939.3,0.7725]
[1734025015972,0.55,3941.0,3939.3,0.7725]
[1734025018171,0.54037522,3941.3,3939.3,0.7725]
[1734025018371,1.87905221,3941.9,3938.8,0.7569]
[1734025018589,3.07359874,3941.9,3938.8,0.7569]
[1734025018925,0.821,3941.9,3938.8,0.7569]
[1734025019684,0.55,3941.9,3938.8,0.7569]
[1734025019895,3.55,3941.9,3938.8,0.7569]
[1734025020104,0.55,3941.7,3938.8,0.7569]
[1734025020491,0.12442488,3941.4,3938.5,1.05696766]
[1734025020692,3.55,3939.5,3938.1,0.755]
[1734025021011,0.6199368,3939.4,3938.1,0.755]
[1734025021212,0.55,3939.8,3938.1,0.755]
[1734025021564,0.55,3939.6,3938.1,0.755]
[1734025021872,1.17716813,3939.6,3938.1,0.755]
[1734025022505,0.62716813,3939.5,3938.1,0.755]
[1734025022714,0.55,3939.4,3938.1,0.755]
[1734025022894,1.24934279,3939.4,3938.1,0.755]
[1734025023093,0.55,3939.2,3938.1,0.755]
[1734025023316,0.55,3938.6,3938.1,0.755]
[1734025023888,3.69934279,3939.1,3938.1,0.755]
[1734025024115,0.55,3939.1,3938.1,0.755]
[1734025024497,0.55,3939.2,3938.1,0.755]
[1734025024977,3.0,3939.1,3938.1,0.755]
[1734025025177,0.55,3938.9,3938.1,0.755]
[1734025026950,0.55,3939.2,3938.1,0.755]
[1734025027403,0.55,3939.0,3938.1,0.755]
[1734025027793,2.649368,3939.2,3938.1,0.755]
[1734025027794,0.55,3939.2,3938.1,0.755]
[1734025027999,0.33844135,3940.1,3938.1,0.755]
[1734025028000,0.8086,3940.3,3938.1,0.755]
[1734025028219,4.23636415,3940.8,3938.1,0.755]
[1734025028220,0.7769,3940.7,3938.1,0.755]
[1734025028431,0.62036437,3940.6,3938.1,0.755]
[1734025028616,0.62036437,3940.6,3938.3,0.7849]
[1734025028839,7.15495221,3941.0,3938.3,0.7849]
[1734025028840,0.12926836,3940.3,3938.3,0.7849]
[1734025029213,0.90616836,3940.3,3938.3,0.7849]
[1734025029645,3.90616836,3940.3,3938.3,0.7849]
[1734025029818,0.55,3940.2,3938.3,0.7849]
[1734025030449,0.12926836,3940.3,3938.3,0.7849]
[1734025031707,0.55,3940.2,3938.3,0.7849]
[1734025032541,0.12462717,3940.6,3937.4,0.55]
[1734025032861,0.57739952,3940.5,3937.8,0.7642]
[1734025033174,0.57739952,3940.5,3938.0,0.7642]
[1734025033341,0.57739952,3940.5,3937.4,0.55]
[1734025033342,0.57739952,3940.5,3938.2,0.7642]
[1734025033541,0.57739952,3940.5,3938.4,0.7642]
[1734025033740,3.0,3941.1,3938.2,0.7642]
[1734025033940,3.0,3941.1,3938.3,0.7835474]
[1734025034325,4.05482156,3941.1,3938.3,0.7835474]
[1734025034553,3.0,3941.1,3938.3,0.7835474]
[1734025034858,0.55,3941.0,3938.3,0.7835474]
[1734025035040,0.55,3940.8,3938.3,0.7835474]
[1734025036060,0.55,3940.8,3938.3,0.7642]
[1734025036367,4.60482156,3940.8,3938.3,0.7642]
[1734025036628,0.67944092,3940.8,3938.3,0.7642]
[1734025036775,3.67944092,3940.8,3938.3,0.78356871]
[1734025036960,0.67355473,3940.7,3938.3,0.78356871]
[1734025037161,0.67355473,3940.7,3938.3,0.7642]
[1734025037162,2.649368,3940.5,3938.3,0.7642]
[1734025037379,3.55,3940.4,3938.3,0.7642]
[1734025037542,0.55,3940.6,3938.3,0.7642]
[1734025038392,1.74788414,3940.6,3938.3,0.7642]
[1734025038559,0.55,3940.4,3938.5,0.8227]
[1734025039084,1.74788414,3940.4,3938.5,0.8227]
[1734025039304,3.0,3940.3,3938.5,0.8227]
[1734025039570,0.55,3940.2,3938.5,0.8227]
[1734025039771,4.74820156,3940.4,3938.5,0.8227]
[1734025040079,0.55,3940.2,3938.5,0.8227]
[1734025040288,4.74822598,3940.2,3938.5,0.8227]
[1734025040501,0.55,3940.2,3938.5,0.8227]
[1734025041541,3.55,3940.2,3938.5,0.8227]
[1734025041751,0.55,3940.2,3938.5,0.8227]
[1734025042094,0.55,3940.0,3938.5,0.8227]
[1734025042644,1.60482156,3940.0,3938.5,0.8227]
[1734025042843,0.55,3940.0,3938.5,0.8227]
[1734025043069,3.55,3940.0,3938.5,0.8227]
[1734025043253,0.55,3940.0,3938.5,0.8227]
[1734025043467,0.55,3939.8,3938.5,0.8227]
[1734025045597,0.21456325,3939.9,3938.5,0.8227]
[1734025045945,1.7024476,3940.5,3938.5,0.8227]
[1734025046177,0.64762604,3940.5,3938.6,0.87133458]
[1734025046361,1.05482156,3940.9,3938.8,0.8207]
[1734025046567,1.05482156,3940.8,3938.8,0.8207]
[1734025047256,1.60482156,3940.7,3938.8,0.8207]
[1734025047469,0.55,3940.5,3938.8,0.8207]
[1734025047670,1.05482156,3940.9,3938.8,0.8207]
[1734025047872,0.56370539,3940.8,3938.9,0.87132694]
[1734025048059,0.56370539,3940.8,3939.0,0.7971]
[1734025048256,1.76221016,3940.8,3939.0,0.7971]
[1734025048482,0.56370539,3940.8,3939.0,0.7971]
[1734025048983,0.55,3940.7,3939.0,0.7971]
[1734025049191,0.41137054,3940.6,3939.0,0.7971]
[1734025049548,3.55,3940.9,3939.0,0.7971]
[1734025049744,0.55,3940.9,3939.0,0.7971]
[1734025049947,0.55,3940.7,3939.0,0.7971]
[1734025050175,4.60482156,3940.7,3939.0,0.7971]
[1734025050345,1.60482156,3940.7,3939.0,0.7971]
[1734025050566,0.55,3940.5,3939.0,0.7971]
[1734025051007,0.55,3940.3,3939.0,0.7971]
[1734025051182,4.19882801,3940.4,3939.0,0.7971]
[1734025051499,4.74896964,3940.3,3939.0,0.7971]
[1734025051718,0.55,3940.1,3939.0,0.7971]
[1734025051998,0.55,3939.9,3939.0,0.7971]
[1734025052880,3.55,3939.9,3939.0,0.7971]
[1734025053165,0.55,3939.7,3939.0,0.7971]
[1734025053405,0.55,3939.8,3939.0,0.7971]
[1734025053591,5.80399483,3939.8,3939.0,0.7971]
[1734025053900,4.60482156,3939.6,3939.0,0.7971]
[1734025054110,0.55,3939.6,3939.0,0.7971]
[1734025054406,4.60482156,3939.6,3939.0,0.7971]
[1734025054576,1.60482156,3939.6,3939.0,0.7971]
[1734025054904,0.55,3939.4,3939.0,0.7971]
[1734025055204,0.55,3939.2,3939.0,0.7971]
[1734025055358,0.55,3939.2,3937.4,0.8311]
[1734025055973,3.55,3939.2,3937.4,0.8311]
[1734025056178,0.55,3939.2,3937.4,0.8311]
[1734025056497,3.55,3939.2,3937.4,0.8311]
[1734025056699,0.55,3939.0,3937.4,0.8311]
[1734025057207,3.55,3939.0,3937.4,0.8311]
[1734025057367,3.55,3939.0,3936.7,1.0515399]
[1734025057897,4.60482156,3939.0,3936.7,1.0515399]
[1734025058096,4.60482156,3939.0,3936.6,1.0515399]
[1734025058301,0.55,3938.8,3936.6,4.0515399]
[1734025058478,0.55,3938.8,3936.7,5.18025745]
[1734025058673,0.55,3938.8,3936.8,2.18025745]
[1734025058998,0.55,3938.8,3936.9,0.87210298]
[1734025059235,0.55,3938.8,3936.6,1.0515399]
[1734025059439,0.55,3938.6,3936.7,3.0]
[1734025059735,0.55,3938.6,3936.8,0.87175998]
[1734025059905,0.55,3938.6,3936.6,1.0515399]
[1734025060098,0.55,3938.6,3936.6,3.23097333]
[1734025060306,0.55,3938.6,3936.7,2.17943343]
[1734025060537,0.55,3938.6,3936.8,0.87177337]
[1734025060706,0.55,3938.6,3936.9,0.8181]
[1734025061818,0.55,3938.4,3936.9,0.8181]
[1734025062973,0.45,3938.4,3936.9,0.8181]
[1734025063108,0.42395,3938.3,3936.9,0.8181]
[1734025064552,0.45,3938.4,3936.9,0.8181]
[1734025066352,3.45,3938.4,3936.9,0.8181]
[1734025066552,0.45,3938.4,3936.9,0.8181]
[1734025073152,0.42625507,3938.7,3936.9,0.8181]
[1734025073447,0.7966,3938.9,3936.9,0.8181]
[1734025074334,0.55,3938.8,3936.9,0.8181]
[1734025075252,1.3195,3939.1,3936.9,0.8181]
[1734025075412,0.7695,3938.8,3936.9,0.8181]
[1734025075620,0.55,3938.7,3936.9,0.8181]
[1734025075914,0.7695,3938.8,3936.9,0.8181]
[1734025075915,0.55,3938.5,3936.9,0.8181]
[1734025076309,0.55,3938.9,3936.9,0.8181]
[1734025076517,0.55,3938.7,3936.9,0.8181]
[1734025078514,0.7623,3938.8,3936.9,0.8181]
[1734025080524,0.55,3938.7,3936.9,0.8181]
[1734025080751,0.55,3938.5,3936.9,0.8181]
[1734025081318,0.55,3938.1,3936.9,0.8181]
[1734025083695,0.7913,3938.0,3936.8,3.65]
[1734025083820,0.7913,3937.8,3936.8,3.65]
[1734025084018,0.68413,3937.7,3936.8,3.65]
[1734025084365,0.55,3937.5,3936.8,3.65]
[1734025084567,0.55,3937.1,3936.8,3.65]
[1734025086527,0.7978,3937.2,3936.8,3.65]
[1734025086835,0.55,3937.5,3936.8,3.65]
[1734025087161,0.55,3937.3,3936.8,3.65]
[1734025088526,0.147373,3937.4,3936.8,3.65]
[1734025088852,2.24087313,3938.6,3936.9,0.7854]
[1734025088853,0.7696,3938.4,3936.9,0.7854]
[1734025091456,0.55,3938.3,3936.9,0.7854]
[1734025094435,3.55,3938.3,3936.9,0.7854]
[1734025094624,0.55,3938.3,3936.9,0.7854]
[1734025096051,0.13123,3938.6,3936.9,0.7854]
[1734025097873,0.55,3938.5,3936.9,0.7854]
[1734025098476,5.80537637,3938.5,3936.9,0.7854]
[1734025098686,1.60482156,3938.5,3936.9,0.7854]
[1734025098868,2.80541495,3938.5,3936.9,0.7854]
[1734025099036,3.0,3938.4,3936.9,0.7854]
[1734025099380,0.7697,3938.2,3936.9,0.7896]
[1734025100136,3.0,3938.5,3937.0,0.87365351]
[1734025100492,1.05482156,3939.0,3937.2,0.8101]
[1734025100691,1.58223235,3939.2,3937.4,3.0]
[1734025100851,1.58223235,3939.2,3937.6,0.8101]
[1734025101051,1.05482156,3939.5,3937.8,0.8101]
[1734025101307,1.05482156,3939.5,3938.0,0.8101]
[1734025101604,1.05482156,3939.6,3938.0,0.8101]
[1734025102052,1.05482156,3939.5,3938.0,0.8101]
[1734025102385,2.24421697,3939.5,3938.0,0.8101]
[1734025102599,1.05482156,3939.6,3938.0,0.8101]
[1734025102797,2.24394142,3939.6,3938.0,0.8101]
[1734025103157,3.55,3939.5,3938.0,0.8101]
[1734025103358,0.55,3939.5,3938.0,0.8101]
[1734025103860,3.55,3939.5,3938.0,0.8101]
[1734025104083,0.55,3939.5,3938.0,0.8101]
[1734025106017,1.05482156,3939.9,3938.0,0.8101]
[1734025106347,1.05482156,3940.2,3938.2,0.7845]
[1734025107001,1.05482156,3940.2,3938.3,0.80178299]
[1734025107310,1.05482156,3940.9,3938.7,0.7764]
[1734025107521,1.82722156,3941.0,3938.9,0.7764]
[1734025108024,0.7724,3941.0,3938.9,0.7764]
[1734025108228,0.34094539,3940.9,3938.9,0.7764]
[1734025108549,0.55,3940.8,3938.9,0.7764]
[1734025110577,0.7732,3941.4,3939.1,0.7518]
[1734025111032,3.0,3941.4,3939.1,0.7518]
[1734025111249,4.82802156,3941.7,3939.1,0.7518]
[1734025111539,3.0,3941.5,3939.1,0.7518]
[1734025111740,0.55,3941.5,3939.1,0.7518]
[1734025112081,0.67380548,3941.5,3939.1,0.7518]
[1734025116385,0.7867,3941.4,3939.1,0.7518]
[1734025116702,0.55,3940.9,3939.1,0.7518]
[1734025116905,0.55,3940.7,3939.1,0.7518]
[1734025117387,0.7997,3940.6,3939.1,0.7518]
[1734025117586,0.55,3940.5,3939.1,0.7518]
[1734025119120,0.55,3940.3,3939.1,0.7518]
[1734025119287,0.55,3940.5,3939.1,0.7518]
[1734025119525,0.13497,3940.4,3939.1,0.7518]
[1734025119874,0.55,3940.3,3939.1,0.7518]
[1734025126529,0.67488083,3940.3,3939.1,0.7518]
[1734025128093,0.55,3940.1,3939.1,0.7518]
[1734025128861,3.199368,3940.1,3938.8,0.7994]
[1734025129062,0.55,3939.9,3938.8,0.7994]
[1734025130005,0.13497,3940.4,3938.8,0.7994]
[1734025130144,3.0,3940.9,3938.8,0.7994]
[1734025131286,0.55,3940.8,3938.8,0.7994]
[1734025132474,1.73384628,3940.8,3938.8,0.7994]
[1734025132660,0.55,3940.6,3938.8,0.7994]
[1734025132860,3.0,3940.7,3938.8,0.7994]
[1734025133095,1.42886678,3940.6,3938.8,0.7994]
[1734025134058,0.55,3940.8,3938.8,0.7994]
[1734025135095,1.73510509,3940.8,3938.8,0.7994]
[1734025135391,0.55,3940.6,3938.8,0.7994]
[1734025135558,1.73533837,3940.6,3938.8,0.7994]
[1734025135750,0.55,3940.6,3938.8,0.7994]
[1734025135951,0.55,3940.4,3938.8,0.7994]
[1734025137150,3.0,3940.3,3938.8,0.7994]
[1734025137501,2.79044977,3940.4,3938.8,0.7994]
[1734025137502,0.55,3940.2,3938.8,0.7994]
[1734025137651,0.55,3940.4,3938.8,0.7994]
[1734025137848,3.55,3940.4,3938.8,0.7994]
[1734025138091,0.55,3940.2,3938.8,0.7994]
[1734025139554,1.60482156,3940.2,3938.8,0.7994]
[1734025139792,0.55,3940.0,3938.8,0.7994]
[1734025140150,0.55,3940.1,3938.8,0.7994]
[1734025141061,3.55,3940.1,3938.8,0.7994]
[1734025141264,0.55,3939.9,3938.8,0.7994]
[1734025142270,0.55,3940.1,3938.8,0.7994]
[1734025142476,5.79250228,3940.1,3938.8,0.7994]
[1734025142670,1.60482156,3940.1,3938.8,0.7994]
[1734025142871,3.0,3940.2,3938.8,0.7994]
[1734025143070,2.10964313,3940.8,3938.8,0.7994]
[1734025143071,1.05482156,3940.8,3938.8,0.7994]
[1734025143408,1.05482156,3941.2,3939.2,0.8144]
[1734025143570,3.17810774,3942.4,3939.2,0.8144]
[1734025143571,1.05482156,3941.4,3939.3,0.8144]
[1734025143769,1.05482156,3941.5,3939.4,0.8144]
[1734025143964,1.05482156,3941.6,3939.4,0.8144]
[1734025144170,1.05482156,3941.5,3939.5,0.87053341]
[1734025144409,1.05482156,3941.5,3939.6,0.8144]
[1734025144716,1.31852695,3941.5,3939.6,0.8144]
[1734025146481,3.0,3941.4,3939.6,0.8144]
[1734025146702,1.31852695,3941.5,3939.6,0.8144]
[1734025146909,3.0,3941.4,3939.6,0.8144]
[1734025147128,1.31852695,3941.5,3939.6,0.8144]
[1734025147429,3.0,3941.4,3939.6,0.8144]
[1734025147631,0.55,3941.3,3939.6,0.8144]
[1734025148001,3.55,3941.3,3939.6,0.8144]
[1734025148194,0.55,3941.3,3939.6,0.8144]
[1734025153509,0.55,3941.5,3939.6,0.8144]
[1734025153711,3.55,3941.5,3939.6,0.8144]
[1734025153923,0.55,3941.3,3939.6,0.8144]
[1734025154982,4.60482156,3941.3,3939.6,0.8144]
[1734025155252,4.60482156,3941.1,3939.6,0.8144]
[1734025155462,0.55,3940.9,3939.6,0.8144]
[1734025155663,1.73392343,3940.9,3939.6,0.8144]
[1734025155953,0.55,3940.7,3939.6,0.8144]
[1734025156562,1.05482156,3941.5,3939.6,0.8144]
[1734025156762,1.18372747,3941.5,3939.6,0.8144]
[1734025157079,1.05482156,3941.7,3939.6,0.8144]
[1734025157249,3.64655539,3941.6,3939.7,0.8256]
[1734025157454,4.18369488,3941.5,3939.7,0.8256]
[1734025157647,3.0,3941.5,3939.7,0.8256]
[1734025157849,5.78851186,3941.4,3939.7,0.8256]
[1734025158061,0.55,3941.2,3939.7,0.8256]
[1734025159041,0.55,3941.4,3939.7,0.8256]
[1734025159242,3.55,3941.4,3939.7,0.8256]
[1734025159750,0.55,3941.4,3939.7,0.8256]
[1734025159981,3.55,3941.4,3939.7,0.8256]
[1734025160281,0.55,3941.2,3939.7,0.8256]
[1734025163394,0.64350106,3941.3,3939.7,0.8256]
[1734025163599,0.64655539,3941.6,3939.7,0.8256]
[1734025164021,1.05482156,3941.9,3939.7,0.8256]
[1734025164298,2.23815387,3941.9,3939.7,0.8256]
[1734025164682,0.55,3941.8,3939.7,0.8256]
[1734025164987,3.55,3941.8,3939.7,0.8256]
[1734025165322,0.55,3941.8,3939.7,0.8256]
[1734025165528,0.55,3941.6,3939.7,0.7963]
[1734025165731,1.18328102,3941.9,3940.7,0.7963]
[1734025166300,1.05482156,3942.6,3940.7,0.7963]
[1734025166501,1.05482156,3942.7,3940.7,0.7963]
[1734025166786,0.53973413,3942.6,3940.9,0.7595]
[1734025166985,1.59455569,3942.6,3940.9,0.7595]
[1734025167234,2.23780188,3942.5,3940.9,0.7595]
[1734025167392,1.05482156,3942.5,3940.9,0.7595]
[1734025167790,1.05482156,3942.4,3940.9,0.7595]
[1734025167990,0.55,3942.2,3940.9,0.7595]
[1734025169709,1.05482156,3942.1,3940.9,0.7595]
[1734025169908,4.60482156,3942.0,3940.9,0.7595]
[1734025170140,0.55,3941.8,3940.9,0.7595]
[1734025170370,0.55,3941.6,3940.9,0.7595]
[1734025170912,0.55,3941.9,3940.9,0.7595]
[1734025171442,0.55,3942.0,3940.9,0.7595]
[1734025171612,2.78742747,3942.1,3940.9,0.7595]
[1734025171954,3.0,3942.2,3940.9,0.7595]
[1734025171955,0.55,3941.9,3940.9,0.7595]
[1734025172222,1.3391,3941.7,3940.9,0.7595]
[1734025172511,2.39392156,3941.7,3940.9,0.7595]
[1734025172805,0.55,3941.5,3940.6,4.405]
[1734025173007,1.73295002,3941.5,3940.6,4.405]
[1734025173308,1.73295002,3941.5,3940.6,3.65]
[1734025173309,0.7891,3941.2,3940.6,3.65]
[1734025173465,4.94743695,3941.1,3940.6,3.65]
[1734025173663,4.60482156,3940.9,3940.6,3.65]
[1734025173868,0.55,3940.7,3940.6,3.65]
[1734025174168,4.73295456,3940.7,3940.6,3.65]
[1734025174580,5.78777612,3940.7,3940.6,3.65]
[1734025174780,6.52477697,3940.7,3940.6,3.65]
[1734025174981,5.46995541,3940.7,3940.6,3.65]
[1734025175409,7.05218776,3940.7,3940.6,3.65]
[1734025176734,3.55,3940.1,3938.0,0.769]
[1734025176931,3.55,3940.1,3937.9,1.0515399]
[1734025176932,0.55,3939.9,3938.2,0.769]
[1734025177111,3.70865551,3939.7,3938.2,0.769]
[1734025177425,0.55,3939.2,3938.2,0.769]
[1734025177629,3.55,3939.3,3938.2,0.769]
[1734025177828,0.55,3939.3,3938.2,0.769]
[1734025178030,1.16982188,3939.3,3938.2,0.769]
[1734025178377,4.16982188,3939.3,3938.2,0.769]
[1734025178576,1.16982188,3939.3,3938.2,0.769]
[1734025178815,2.24290769,3939.5,3938.2,0.769]
[1734025178995,0.55,3939.5,3938.2,0.769]
[1734025179193,0.55,3939.8,3938.2,0.769]
[1734025179474,1.73329019,3939.8,3938.2,0.769]
[1734025179674,4.73329019,3939.8,3938.2,0.769]
[1734025179913,0.55,3939.6,3938.3,0.08]
[1734025180114,3.0,3939.5,3938.3,0.08]
[1734025180316,0.55,3939.4,3938.3,0.08]
[1734025180834,3.55,3939.4,3938.3,0.08]
[1734025181127,0.55,3939.4,3938.3,0.08]
[1734025181305,0.55,3939.2,3938.3,0.08]
[1734025183389,0.55,3939.5,3938.3,0.08]
[1734025183816,3.55,3939.6,3938.3,0.08]
[1734025184113,0.55,3939.6,3938.3,0.08]
[1734025184317,0.55,3939.6,3938.4,0.8154]
[1734025184489,0.55,3939.4,3938.4,0.8154]
[1734025185080,0.55,3939.7,3938.4,0.8154]
[1734025185290,0.55,3939.8,3938.4,0.8154]
[1734025186710,0.55,3939.9,3938.4,0.8154]
[1734025186917,0.55,3939.7,3938.4,0.8154]
[1734025187294,0.55,3939.7,3936.9,0.27353291]
[1734025187295,0.55,3939.7,3938.6,0.7765]
[1734025190136,0.59806835,3939.8,3938.6,0.7765]
[1734025190455,2.90567503,3940.4,3938.6,0.7765]
[1734025190456,3.0,3940.5,3938.6,0.7765]
[1734025190588,1.05928751,3940.7,3939.5,0.7592]
[1734025190789,1.84638751,3941.2,3939.5,0.7592]
[1734025191023,1.84638751,3941.2,3938.1,0.27353291]
[1734025191024,0.7871,3941.2,3940.0,0.08]
[1734025191225,0.7871,3941.2,3940.1,0.7592]
[1734025191226,0.60846868,3941.1,3940.1,0.7592]
[1734025191825,2.649368,3941.0,3940.1,0.7592]
[1734025192230,0.55,3940.9,3940.1,0.7592]
[1734025192967,3.55,3940.9,3940.1,0.7592]
[1734025193167,0.55,3940.7,3940.1,0.7592]
[1734025196376,3.55,3940.5,3940.0,0.08]
[1734025196689,0.55,3940.5,3940.0,0.08]
[1734025196895,3.55,3940.7,3940.0,0.08]
[1734025197047,0.55,3940.7,3940.0,0.08]
[1734025197249,0.55,3940.5,3940.0,0.08]
[1734025197753,0.79945709,3940.8,3940.0,0.08]
[1734025197754,0.55,3940.7,3940.0,0.08]
[1734025200511,3.55,3940.5,3940.0,0.08]
[1734025200652,0.55,3940.7,3940.0,0.08]
[1734025201693,3.55,3940.1,3940.0,0.08]
[1734025201894,6.59491264,3940.1,3939.1,0.8016]
[1734025202095,3.55,3939.4,3939.1,0.8016]
[1734025202353,3.55,3939.4,3936.7,1.0515399]
[1734025202506,3.55,3939.4,3936.9,0.7548]
[1734025203374,3.55,3939.0,3936.9,0.7548]
[1734025203585,0.55,3938.8,3936.9,0.7548]
[1734025205500,0.55,3938.6,3936.9,0.7548]
[1734025205698,3.55,3938.6,3936.9,0.7548]
[1734025208488,0.7835,3938.2,3936.9,0.7548]
[1734025208691,0.55,3938.1,3936.9,0.7548]
[1734025208930,0.55,3937.9,3936.9,0.7548]
[1734025209731,0.55,3938.1,3936.9,0.7548]
[1734025211830,1.5485576,3938.9,3936.9,0.7548]
[1734025213296,0.55,3938.8,3936.9,0.7548]
[1734025213645,0.55,3938.6,3936.9,0.7548]
[1734025214773,0.55,3938.8,3936.9,0.7548]
[1734025217888,3.55,3938.6,3936.9,0.7548]
[1734025218170,0.55,3938.7,3936.9,0.7548]
[1734025218331,0.55,3938.5,3936.9,0.7548]
[1734025219157,0.55,3938.3,3936.9,0.7548]
[1734025220371,3.55,3938.3,3936.9,0.7548]
[1734025220564,0.55,3938.3,3936.9,0.7548]
[1734025220736,0.55,3938.1,3936.9,0.7548]
[1734025221438,0.55,3938.3,3936.9,0.7548]
[1734025224049,1.86078533,3938.7,3936.9,0.7548]
[1734025224235,0.8037,3938.7,3936.9,0.7548]
[1734025225129,1.30901957,3938.9,3936.9,0.7548]
[1734025225330,3.88116729,3938.8,3936.9,0.7548]
[1734025225583,0.55,3938.7,3936.9,0.7548]
[1734025228966,0.55,3938.7,3937.0,0.02539596]
[1734025229163,1.05708533,3939.2,3937.1,0.7719]
[1734025229164,0.55,3939.2,3937.1,0.7719]
[1734025230262,3.55,3939.0,3937.1,0.7719]
[1734025230483,3.55,3938.8,3937.1,0.7719]
[1734025230646,0.55,3938.8,3937.1,0.7719]
[1734025230851,3.55,3938.8,3937.1,0.7719]
[1734025231050,0.55,3938.8,3937.1,0.7719]
[1734025231353,3.55,3938.8,3937.1,0.7719]
[1734025231555,0.55,3938.6,3937.1,0.7719]
[1734025233065,1.3689,3938.6,3937.1,0.7719]
[1734025233268,3.55,3938.2,3937.1,0.7719]
[1734025233492,0.8189,3938.1,3937.1,0.7719]
[1734025233695,0.55,3937.8,3937.1,0.7719]
[1734025234020,0.55,3937.6,3937.1,0.7719]
[1734025236508,0.55,3937.6,3935.2,1.0515399]
[1734025236668,0.55,3937.6,3935.3,0.7975]
[1734025236875,0.55,3937.9,3935.4,0.7975]
[1734025237068,0.55,3937.7,3935.4,0.7975]
[1734025237269,0.55,3937.5,3935.4,0.7975]
[1734025237690,0.55,3937.3,3935.4,0.7975]
[1734025238323,3.0,3937.4,3935.4,0.7975]
[1734025238324,3.55,3937.0,3935.4,0.7975]
[1734025240870,4.60708533,3937.0,3935.4,0.7975]
[1734025241071,1.18357839,3936.9,3935.4,0.7975]
[1734025241300,0.55,3936.5,3935.4,0.7975]
[1734025241773,0.55,3936.7,3935.4,0.7975]
[1734025247995,1.87858533,3937.4,3935.4,0.7975]
[1734025248232,0.8215,3937.4,3935.5,0.7764]
[1734025249193,0.55,3937.3,3935.5,0.7764]
[1734025249395,0.55,3937.1,3935.5,0.7764]
[1734025249805,0.55,3937.3,3935.5,0.7764]
[1734025250698,3.55,3937.3,3935.5,0.7764]
[1734025250895,4.60708533,3937.3,3935.5,0.7764]
[1734025251098,3.55,3937.3,3935.5,0.7764]
[1734025251446,0.55,3937.1,3935.5,0.7764]
[1734025254499,0.55,3937.5,3935.5,0.7764]
[1734025254698,4.73489495,3937.5,3935.5,0.7764]
[1734025255001,0.67496447,3937.5,3935.5,0.7764]
[1734025255365,4.85985402,3937.5,3935.5,0.7764]
[1734025255501,0.55,3937.3,3935.5,0.7764]
[1734025259210,3.55,3937.3,3935.5,0.7764]
[1734025259405,4.60708533,3937.3,3935.5,0.7764]
[1734025259606,1.1850069,3937.2,3935.5,0.7764]
[1734025259835,4.60708533,3937.3,3935.5,0.7764]
[1734025260021,0.55,3937.1,3935.5,0.7764]
[1734025260252,0.7698,3937.0,3935.5,0.7764]
[1734025260430,3.55,3936.9,3935.5,0.7764]
[1734025260767,4.60708533,3936.9,3935.5,0.7764]
[1734025260907,0.55,3936.7,3935.5,0.7764]
[1734025261244,0.55,3936.5,3935.5,0.7764]
[1734025263249,0.63422828,3936.6,3935.5,0.7764]
[1734025267225,5.24228254,3936.9,3935.5,0.7764]
[1734025267413,4.18519721,3936.8,3935.5,0.7764]
[1734025267614,1.18248782,3936.9,3935.5,0.7764]
[1734025267866,5.36769324,3936.9,3935.5,0.7764]
[1734025268060,4.18520542,3936.8,3935.5,0.7764]
[1734025268241,0.91374932,3936.7,3935.5,0.7764]
[1734025271548,3.91374932,3936.7,3935.5,0.7764]
[1734025271755,0.91374932,3936.7,3935.5,0.7764]
[1734025273249,3.10536801,3937.2,3935.5,0.7764]
[1734025273250,3.63280958,3937.2,3935.5,0.7764]
[1734025273449,1.05708533,3937.4,3935.6,0.8178]
[1734025273649,1.58893127,3937.6,3935.7,0.8178]
[1734025273650,1.31062774,3937.5,3935.7,0.8178]
[1734025273896,0.12496447,3937.5,3935.7,0.8178]
[1734025274259,1.1820498,3937.5,3935.7,0.8178]
[1734025274463,1.05708533,3937.4,3935.7,0.8178]
[1734025274658,1.33418344,3937.3,3935.7,0.8178]
[1734025274893,4.05708533,3937.2,3935.7,0.8178]
[1734025275095,1.18559666,3937.1,3935.7,0.8178]
[1734025275452,1.05708533,3936.9,3935.7,0.8178]
[1734025275652,4.86268533,3936.8,3935.7,0.8178]
[1734025275882,1.05708533,3936.5,3935.7,0.8178]
[1734025276098,1.05708533,3936.4,3935.7,0.8178]
[1734025276323,5.77452793,3936.6,3935.7,0.8178]
[1734025276324,1.05708533,3936.3,3935.7,0.8178]
[1734025276458,2.77452793,3936.5,3935.7,0.8178]
[1734025276459,1.05708533,3936.2,3935.7,0.8178]
[1734025276657,1.05708533,3936.1,3935.7,0.8178]
[1734025276855,4.74024666,3936.0,3934.4,0.7723]
[1734025277087,1.18559666,3935.9,3934.4,0.7723]
[1734025277286,2.24413415,3935.9,3934.4,0.7723]
[1734025277456,5.24413415,3935.9,3934.4,0.7723]
[1734025277657,5.24450993,3935.8,3934.4,0.7723]
[1734025277960,4.93910748,3935.7,3934.4,0.7723]
[1734025278124,0.75166025,3935.7,3934.4,0.7723]
[1734025278468,3.75166025,3935.7,3934.4,0.7723]